bitfinex/quotes_ETHUSD_20251201
["timestamp","ask_amount","ask_price","bid_price","bid_amount"]
[1764557044488,4.57632657,2857.1,2857.0,0.001]
[1764557044689,5.44800295,2857.1,2857.0,0.001]
[1764557045691,5.90710295,2857.1,2857.0,0.001]
[1764557047379,6.14210295,2857.1,2857.0,0.001]
[1764557047893,6.63600295,2857.1,2857.0,0.001]
[1764557048386,8.43600295,2857.1,2857.0,0.001]
[1764557048591,12.63050695,2857.1,2857.0,0.001]
[1764557049093,8.94150695,2857.1,2857.0,0.001]
[1764557050392,8.34760695,2857.1,2857.0,0.001]
[1764557052298,7.48300295,2857.1,2857.0,0.001]
[1764557053186,7.24800295,2857.1,2857.0,0.001]
[1764557053378,6.37632657,2857.1,2857.0,0.4703]
[1764557053687,2.38567996,2857.1,2857.0,0.9211]
[1764557054056,2.035,2857.1,2857.0,0.9211]
[1764557054256,2.38567996,2857.1,2857.0,0.9211]
[1764557054690,2.38567996,2857.1,2857.0,0.4703]
[1764557054992,5.88573246,2857.1,2857.0,0.4703]
[1764557055609,8.06450382,2857.1,2857.0,0.001]
[1764557055771,7.82950382,2857.1,2857.0,0.001]
[1764557056097,7.60540382,2857.1,2857.0,0.001]
[1764557056888,7.60540382,2857.1,2857.0,0.4703]
[1764557056889,1.8,2857.1,2857.0,0.4703]
[1764557057096,5.88573246,2857.1,2857.0,0.9211]
[1764557058414,2.38567996,2857.1,2857.0,0.9211]
[1764557058614,2.38567996,2857.1,2857.0,0.4703]
[1764557058767,5.88573246,2857.1,2857.0,0.4703]
[1764557059402,6.82430062,2857.1,2857.0,0.001]
[1764557059972,2.38567996,2857.1,2857.0,0.001]
[1764557060170,2.035,2857.1,2857.0,0.9211]
[1764557061881,2.037,2857.1,2857.0,0.9211]
[1764557064271,5.88773246,2857.1,2857.0,0.4703]
[1764557064530,5.88773246,2857.1,2857.0,0.001]
[1764557065174,7.28060085,2857.1,2857.0,0.001]
[1764557065370,8.48729496,2857.1,2857.0,0.001]
[1764557065612,8.99279896,2857.1,2857.0,0.001]
[1764557066313,8.89279896,2857.1,2857.0,0.001]
[1764557066484,8.65779896,2857.1,2857.0,0.001]
[1764557066899,8.99279896,2857.1,2857.0,0.001]
[1764557067583,8.89279896,2857.1,2857.0,0.001]
[1764557067913,8.99279896,2857.1,2857.0,0.001]
[1764557068299,8.89279896,2857.1,2857.0,0.001]
[1764557068706,7.55209496,2857.1,2857.0,0.001]
[1764557069038,11.24109496,2857.1,2857.0,0.001]
[1764557069593,11.00609496,2857.1,2857.0,0.001]
[1764557069790,11.24109496,2857.1,2857.0,0.001]
[1764557069986,11.24109496,2857.1,2857.0,0.4644]
[1764557069987,5.88773246,2857.1,2857.0,0.4644]
[1764557070187,6.61332657,2857.1,2857.0,0.001]
[1764557070388,5.88773246,2857.1,2857.0,0.001]
[1764557070705,6.61332657,2857.1,2857.0,0.001]
[1764557070913,6.37832657,2857.1,2857.0,0.001]
[1764557071108,7.60115269,2857.1,2857.0,0.001]
[1764557073899,8.05525269,2857.1,2857.0,0.001]
[1764557074114,7.60115269,2857.1,2857.0,0.001]
[1764557074286,7.82025269,2857.1,2857.0,0.001]
[1764557074486,8.05525269,2857.1,2857.0,0.001]
[1764557074896,7.60115269,2857.1,2857.0,0.001]
[1764557075093,8.05525269,2857.1,2857.0,0.001]
[1764557075315,6.37832657,2857.1,2857.0,0.4644]
[1764557075508,7.06742657,2857.1,2857.0,0.001]
[1764557075709,7.54852657,2857.1,2857.0,0.001]
[1764557076044,7.06742657,2857.1,2857.0,0.001]
[1764557076229,8.49306269,2857.1,2857.0,0.001]
[1764557077135,8.03896269,2857.1,2857.0,0.001]
[1764557077344,8.97416269,2857.1,2857.0,0.001]
[1764557079066,8.49306269,2857.1,2857.0,0.001]
[1764557079214,8.97416269,2857.1,2857.0,0.001]
[1764557079810,13.06866669,2857.1,2857.0,0.001]
[1764557080516,13.16866669,2857.1,2857.0,0.001]
[1764557080722,13.06866669,2857.1,2857.0,0.001]
[1764557081339,8.89856669,2857.1,2857.0,0.001]
[1764557081637,12.13246669,2857.1,2857.0,0.001]
[1764557082017,13.06766669,2857.1,2857.0,0.001]
[1764557083325,13.16766669,2857.1,2857.0,0.001]
[1764557083525,25.85062969,2857.1,2857.0,0.001]
[1764557083831,25.85062969,2857.1,2856.9,0.001]
[1764557083832,24.97010707,2857.0,2856.9,0.001]
[1764557084041,24.43938023,2857.0,2856.9,0.001]
[1764557084422,24.43938023,2857.0,2855.4,0.1399]
[1764557084423,0.405504,2856.6,2854.7,0.1435]
[1764557084626,33.69620711,2856.7,2854.9,0.4509]
[1764557084627,11.74664607,2856.2,2854.9,0.4509]
[1764557084825,13.13141068,2856.2,2854.9,0.4509]
[1764557085042,13.13141068,2856.2,2855.2,0.4509]
[1764557085043,7.49074268,2856.2,2855.2,0.4509]
[1764557085232,10.31684207,2856.2,2855.2,0.4509]
[1764557085432,8.70661745,2856.2,2855.2,0.4509]
[1764557085631,5.67103345,2856.2,2855.4,0.4509]
[1764557085842,6.15213345,2856.2,2855.4,0.4509]
[1764557086049,5.43703345,2856.2,2855.4,0.4509]
[1764557086217,5.43703345,2856.2,2854.7,0.1435]
[1764557086218,6.11074029,2856.2,2855.5,0.4519]
[1764557086418,5.87674029,2856.2,2855.5,0.001]
[1764557086617,6.11074029,2856.2,2855.7,0.4509]
[1764557087343,6.11074029,2856.2,2856.1,0.6059]
[1764557087846,4.81142945,2856.2,2856.1,0.6059]
[1764557088235,5.74662945,2856.2,2856.1,0.001]
[1764557088652,5.26552945,2856.2,2856.1,0.001]
[1764557089143,5.67103345,2856.2,2856.1,0.001]
[1764557089344,7.06934029,2856.2,2856.1,0.001]
[1764557089716,7.16934029,2856.2,2856.1,0.001]
[1764557090116,7.06934029,2856.2,2856.1,0.001]
[1764557092622,6.58824029,2856.2,2856.1,0.001]
[1764557092824,6.13414029,2856.2,2856.1,0.001]
[1764557093040,7.08354029,2856.2,2856.1,0.001]
[1764557093647,6.94954029,2856.2,2856.1,0.001]
[1764557093836,10.87254029,2856.2,2856.1,0.001]
[1764557094042,16.29577229,2856.2,2856.1,0.001]
[1764557095429,28.84542929,2856.2,2856.1,0.001]
[1764557096050,28.36767729,2856.2,2856.1,0.001]
[1764557096221,25.02831729,2856.2,2856.1,0.001]
[1764557096422,22.25533729,2856.2,2856.1,0.001]
[1764557097150,21.63013829,2856.2,2856.1,0.001]
[1764557097342,10.87254029,2856.2,2856.1,0.001]
[1764557097543,23.60869029,2856.2,2856.1,0.001]
[1764557097754,22.46769029,2856.2,2856.1,0.001]
[1764557097923,18.37049429,2856.2,2856.1,0.001]
[1764557098247,20.47149429,2856.2,2856.1,0.001]
[1764557098448,24.16892329,2856.2,2856.1,0.001]
[1764557098857,23.34664429,2856.2,2856.1,0.001]
[1764557099556,23.61964429,2856.2,2856.1,0.001]
[1764557100055,21.18600529,2856.2,2856.1,0.001]
[1764557100432,31.85856533,2856.2,2856.1,0.001]
[1764557100633,18.51903599,2856.2,2856.1,0.001]
[1764557100835,4.76904218,2856.2,2856.1,0.6134]
[1764557101033,5.00304218,2856.2,2856.1,0.001]
[1764557101437,6.77803629,2856.2,2856.1,0.001]
[1764557101752,6.30353629,2856.2,2856.1,0.001]
[1764557101959,5.72863629,2856.2,2856.1,0.4719]
[1764557102142,6.20353629,2856.2,2856.1,0.001]
[1764557102344,25.37884829,2856.2,2856.1,0.001]
[1764557102557,22.39124529,2856.2,2856.1,0.001]
[1764557102758,22.59202229,2856.2,2856.1,0.001]
[1764557102943,20.99024729,2856.2,2856.1,0.001]
[1764557103655,16.66164229,2856.2,2856.1,0.001]
[1764557103856,20.34642929,2856.2,2856.1,0.001]
[1764557104158,20.58042929,2856.2,2856.1,0.001]
[1764557104851,40.87254029,2856.2,2856.1,0.001]
[1764557105055,1.13109811,2856.1,2855.6,0.001]
[1764557105257,5.74567807,2855.7,2855.6,0.001]
[1764557105422,5.97967807,2855.7,2855.6,0.001]
[1764557105622,1.07627407,2855.7,2855.6,0.4719]
[1764557105844,0.35067996,2855.7,2855.6,0.9656]
[1764557106043,0.58467996,2855.7,2855.6,0.9656]
[1764557106757,0.234,2855.7,2855.6,0.9656]
[1764557107130,0.58467996,2855.7,2855.6,0.9656]
[1764557107336,0.234,2855.7,2855.6,0.9656]
[1764557108063,0.35067996,2855.8,2855.6,0.9656]
[1764557108245,0.35067996,2855.8,2855.7,0.9646]
[1764557108435,0.58467996,2855.8,2855.7,0.9646]
[1764557109860,0.35067996,2855.8,2855.7,0.9646]
[1764557110047,0.58467996,2855.8,2855.7,0.9646]
[1764557110361,2.38467996,2855.8,2855.7,0.9646]
[1764557110534,5.88632573,2855.8,2855.7,0.4709]
[1764557110742,5.88632573,2855.8,2855.7,0.9646]
[1764557110929,10.4509768,2855.8,2855.6,0.001]
[1764557111126,2.02567407,2855.7,2855.6,0.001]
[1764557111331,1.55117407,2855.7,2855.6,0.001]
[1764557111561,2.18049811,2855.7,2855.6,0.001]
[1764557111864,6.77330513,2855.7,2855.6,0.001]
[1764557112049,0.35067996,2853.9,2853.8,0.1455]
[1764557112362,0.234,2853.9,2853.8,0.6392]
[1764557112569,0.234,2853.9,2853.8,1.1101]
[1764557112731,0.58467996,2853.9,2853.8,1.1101]
[1764557112949,4.08865697,2853.9,2853.8,0.6164]
[1764557113274,0.58467996,2853.9,2853.8,0.6164]
[1764557113477,0.234,2853.9,2853.8,1.1101]
[1764557114176,0.58467996,2853.9,2853.8,1.1101]
[1764557114588,0.234,2853.9,2853.8,1.1101]
[1764557114761,0.58467996,2853.9,2853.8,1.1101]
[1764557114962,0.234,2853.9,2853.8,1.1101]
[1764557115583,0.35067996,2854.3,2853.8,1.1101]
[1764557115888,0.234,2854.2,2853.9,0.4937]
[1764557116264,4.08828867,2854.2,2854.1,0.4709]
[1764557116610,0.58467996,2854.2,2854.1,0.4709]
[1764557117373,0.58467996,2854.2,2854.1,0.9646]
[1764557117585,0.234,2854.2,2854.1,0.4709]
[1764557117753,0.35067996,2853.9,2853.8,0.1455]
[1764557118380,3.85465697,2853.9,2853.8,0.1455]
[1764557118585,7.74379432,2853.9,2853.2,0.4937]
[1764557118880,0.35067996,2853.4,2853.2,0.4937]
[1764557119055,0.234,2853.3,2853.2,0.4937]
[1764557119450,0.234,2853.3,2853.2,0.9646]
[1764557120385,0.58467996,2853.3,2853.2,0.4709]
[1764557120684,0.58467996,2853.3,2853.2,0.9646]
[1764557120992,0.234,2853.3,2853.2,0.9646]
[1764557121981,0.234,2853.3,2853.2,4.46943667]
[1764557122963,0.234,2853.3,2853.2,5.28483183]
[1764557123161,0.234,2853.3,2853.2,0.9646]
[1764557123361,0.234,2853.3,2853.2,4.46943667]
[1764557124365,0.234,2853.3,2853.2,0.9646]
[1764557124563,0.234,2853.3,2853.2,0.4709]
[1764557124786,0.58467996,2853.3,2853.0,0.1445]
[1764557125085,0.234,2853.3,2853.0,3.64958236]
[1764557125254,0.35067996,2853.6,2853.2,0.4869]
[1764557125588,0.234,2853.5,2853.0,7.15466472]
[1764557125882,4.22871188,2854.6,2853.4,0.4869]
[1764557126059,0.35067996,2854.2,2853.4,0.4869]
[1764557126254,0.7002,2854.5,2853.4,0.4869]
[1764557126460,0.35067996,2853.9,2853.5,4.00268098]
[1764557126983,0.58467996,2853.8,2853.6,0.4983]
[1764557127389,0.58467996,2853.8,2853.7,0.4869]
[1764557128090,0.58467996,2853.8,2853.7,0.9852]
[1764557128255,0.35067996,2853.8,2853.7,0.9852]
[1764557128454,0.58467996,2853.8,2853.7,0.9852]
[1764557129665,0.234,2853.8,2853.7,0.4869]
[1764557130189,0.58467996,2853.8,2853.7,0.9852]
[1764557130387,0.58467996,2853.8,2853.7,4.48942258]
[1764557130695,6.02898239,2854.4,2853.7,7.99364516]
[1764557130696,2.52559411,2854.4,2853.7,7.99364516]
[1764557130999,0.35067996,2854.2,2853.8,0.4983]
[1764557131297,0.35067996,2854.2,2853.9,0.1455]
[1764557131298,0.234,2854.1,2853.9,0.1455]
[1764557131663,0.234,2854.1,2854.0,0.9852]
[1764557131858,0.35067996,2854.2,2854.0,0.9852]
[1764557132069,0.35067996,2854.2,2853.9,0.1455]
[1764557132070,0.35067996,2854.2,2854.1,0.4869]
[1764557132274,0.58467996,2854.2,2854.1,0.4869]
[1764557132471,0.72559411,2854.8,2854.1,0.4869]
[1764557132671,0.35067996,2854.2,2854.1,0.4869]
[1764557132878,0.58467996,2854.2,2854.1,0.4869]
[1764557134701,0.58467996,2854.2,2853.4,0.4983]
[1764557134702,0.35067996,2853.9,2853.4,0.4983]
[1764557134907,0.35067996,2853.7,2853.4,0.4983]
[1764557135284,0.35067996,2853.7,2853.6,0.4869]
[1764557135797,0.234,2853.7,2853.6,0.9852]
[1764557136167,0.234,2853.7,2853.1,0.4993]
[1764557136168,0.7087,2853.7,2853.1,0.4993]
[1764557136508,0.35067996,2853.2,2853.1,0.001]
[1764557136670,0.58467996,2853.2,2853.1,0.001]
[1764557137577,4.08951663,2853.2,2853.1,0.001]
[1764557137779,8.31543285,2853.2,2853.1,0.001]
[1764557137980,16.36144666,2853.2,2853.1,0.001]
[1764557138174,8.31543285,2853.2,2853.1,0.001]
[1764557141122,7.61523285,2853.2,2853.1,0.001]
[1764557141476,8.31543285,2853.2,2853.1,0.001]
[1764557141777,8.41543285,2853.2,2853.1,0.001]
[1764557142709,8.31543285,2853.2,2853.1,0.001]
[1764557143316,7.84923285,2853.2,2853.1,0.001]
[1764557143516,8.31543285,2853.2,2853.1,0.001]
[1764557145196,8.72093685,2853.2,2853.1,0.001]
[1764557145428,16.86695066,2853.2,2853.1,0.001]
[1764557146512,17.00740922,2853.2,2853.1,0.001]
[1764557147511,8.62739541,2853.2,2853.1,0.001]
[1764557147694,8.86039541,2853.2,2853.1,0.001]
[1764557148010,8.45489141,2853.2,2853.1,0.001]
[1764557148209,8.31443285,2853.2,2853.1,0.001]
[1764557148412,7.75567858,2853.2,2853.1,0.001]
[1764557148590,7.84823285,2853.2,2853.1,0.001]
[1764557149218,8.31443285,2853.2,2853.1,0.001]
[1764557150022,16.86595066,2853.2,2853.1,0.001]
[1764557150199,31.82062666,2853.2,2853.1,0.001]
[1764557150384,31.27890666,2853.2,2853.1,0.001]
[1764557150788,0.405504,2852.7,2852.6,0.001]
[1764557151109,0.35067996,2850.8,2850.6,0.001]
[1764557151308,3.74091033,2850.7,2850.6,0.001]
[1764557152017,4.09159029,2850.7,2850.6,0.001]
[1764557152320,0.58367996,2850.7,2850.6,0.001]
[1764557153117,0.35067996,2850.8,2850.6,0.9283]
[1764557153334,0.72559411,2850.9,2850.7,0.4619]
[1764557153492,0.58367996,2850.8,2850.7,0.4619]
[1764557153692,0.58367996,2850.8,2850.7,0.9273]
[1764557154407,0.58367996,2850.8,2850.7,0.4619]
[1764557155191,0.35067996,2851.2,2850.7,0.9273]
[1764557155388,0.35067996,2851.2,2850.9,0.4619]
[1764557155718,0.35067996,2851.2,2850.7,7.48121984]
[1764557155719,0.233,2851.1,2851.0,0.4654]
[1764557155886,0.35067996,2851.4,2851.1,0.6084]
[1764557156087,0.72559411,2851.8,2851.1,0.6084]
[1764557156088,0.35067996,2851.2,2851.1,0.6084]
[1764557156386,0.35067996,2851.2,2850.8,0.4654]
[1764557156588,0.35067996,2850.9,2850.8,0.4654]
[1764557156800,0.58367996,2850.9,2850.8,0.4654]
[1764557157000,0.58367996,2850.9,2850.8,0.9273]
[1764557157430,0.58367996,2850.9,2850.8,0.4619]
[1764557157789,0.58367996,2850.9,2850.8,0.9273]
[1764557157998,0.58367996,2850.9,2850.8,0.4619]
[1764557159089,0.58367996,2850.9,2850.8,0.9273]
[1764557159525,0.233,2850.9,2850.8,0.9273]
[1764557159903,0.58367996,2850.9,2850.8,0.9273]
[1764557160102,0.233,2850.9,2850.8,0.9273]
[1764557160302,0.233,2850.9,2850.8,4.43508728]
[1764557160621,0.233,2850.9,2850.8,0.9273]
[1764557160825,0.58367996,2850.9,2850.8,0.4619]
[1764557161032,0.58367996,2850.9,2850.8,0.9273]
[1764557161197,0.58367996,2850.9,2850.8,0.4619]
[1764557161702,0.58367996,2850.9,2850.8,0.9273]
[1764557161901,0.35067996,2850.9,2850.8,4.43508728]
[1764557162131,0.35067996,2850.9,2850.8,0.9273]
[1764557162337,0.58367996,2850.9,2850.8,4.43508728]
[1764557162540,0.58367996,2850.9,2850.8,0.9273]
[1764557162707,0.35067996,2851.5,2850.8,8.38649111]
[1764557162909,0.35067996,2850.7,2850.6,0.001]
[1764557163112,1.44397996,2850.7,2850.6,0.001]
[1764557163333,5.6774844,2850.7,2850.6,0.001]
[1764557163823,1.54437407,2850.7,2850.6,0.001]
[1764557164029,6.18270614,2850.7,2850.6,0.001]
[1764557164243,6.58821014,2850.7,2850.6,0.001]
[1764557164541,6.68821014,2850.7,2850.6,0.001]
[1764557164702,6.33753018,2850.7,2850.6,0.001]
[1764557164896,6.68821014,2850.7,2850.6,0.001]
[1764557165349,19.33397014,2850.7,2850.6,0.001]
[1764557165653,13.72889414,2850.7,2850.6,0.001]
[1764557165816,13.96189414,2850.7,2850.6,0.001]
[1764557166341,37.52953514,2850.7,2850.6,0.001]
[1764557167067,0.1,2850.1,2846.8,1.8748471]
[1764557167206,0.7196,2850.3,2846.1,0.1442]
[1764557167207,0.35067996,2847.1,2846.1,0.1442]
[1764557167518,0.233,2847.0,2846.2,0.03513456]
[1764557167716,0.35067996,2846.8,2846.2,0.50053456]
[1764557167924,0.35067996,2846.8,2846.2,3.97885653]
[1764557168233,0.35067996,2846.8,2846.7,0.4619]
[1764557168399,0.233,2846.8,2846.7,0.4619]
[1764557168600,0.35067996,2847.8,2846.7,0.9273]
[1764557168908,0.35067996,2847.4,2847.3,0.4619]
[1764557169123,3.51037894,2848.7,2847.3,0.4619]
[1764557169312,0.35067996,2848.0,2847.6,0.4619]
[1764557169514,0.233,2847.9,2847.1,0.1415]
[1764557169725,0.72559411,2848.5,2847.1,0.1415]
[1764557169726,0.4922,2848.4,2847.2,0.03512222]
[1764557170046,0.72559411,2848.5,2847.2,0.03512222]
[1764557170047,0.35067996,2848.2,2847.3,0.03512099]
[1764557170345,0.35067996,2848.6,2848.4,0.6059]
[1764557170541,0.1805,2849.2,2848.5,0.4619]
[1764557170848,0.35067996,2848.5,2848.4,0.6094]
[1764557171016,0.35067996,2848.5,2848.0,0.144]
[1764557171215,0.6727,2848.7,2847.7,0.4654]
[1764557171538,0.35067996,2847.8,2847.4,0.4654]
[1764557171699,0.72559411,2848.5,2847.2,0.4654]
[1764557171700,0.35067996,2847.5,2847.2,0.4654]
[1764557172102,0.35067996,2847.5,2847.3,0.03512099]
[1764557172317,0.233,2847.4,2847.2,0.50052222]
[1764557172734,0.4922,2848.4,2847.2,0.50052222]
[1764557172935,0.4922,2848.4,2847.2,0.4654]
[1764557173142,0.35067996,2847.9,2847.2,0.50052222]
[1764557173342,0.233,2847.9,2847.4,3.51197583]
[1764557173547,0.233,2847.9,2847.5,0.4654]
[1764557174338,0.1805,2848.7,2847.5,0.4654]
[1764557174339,0.233,2848.0,2847.5,0.4654]
[1764557174844,0.35067996,2847.9,2847.5,0.4654]
[1764557175228,0.233,2848.0,2847.5,0.4654]
[1764557175444,3.51028983,2848.8,2847.5,0.4654]
[1764557175445,0.233,2849.1,2847.7,7.0232117]
[1764557175619,0.35067996,2848.6,2847.8,0.76070893]
[1764557175810,0.35067996,2848.6,2847.8,1.22610893]
[1764557176031,0.35067996,2848.6,2848.5,0.144]
[1764557176233,0.58367996,2849.0,2848.5,0.144]
[1764557176541,0.58367996,2848.9,2848.5,0.144]
[1764557176917,0.58367996,2848.9,2848.1,0.144]
[1764557176918,0.9057,2848.9,2848.1,0.144]
[1764557177118,0.35067996,2848.2,2848.1,0.144]
[1764557177313,0.233,2848.2,2848.1,0.144]
[1764557177528,0.233,2848.2,2847.1,8.75670324]
[1764557177529,0.58367996,2848.2,2847.7,0.144]
[1764557178028,0.35067996,2847.9,2847.7,0.144]
[1764557178231,0.58367996,2848.2,2847.7,0.144]
[1764557178547,0.233,2848.2,2847.7,0.6094]
[1764557178846,0.233,2848.3,2847.8,0.03511482]
[1764557179056,0.233,2848.4,2847.8,0.50051482]
[1764557179264,0.58367996,2848.4,2847.8,0.50051482]
[1764557179554,0.233,2848.4,2847.8,3.97687122]
[1764557179719,0.35067996,2848.3,2847.8,3.97687122]
[1764557179913,0.35067996,2848.3,2847.8,7.48835376]
[1764557180116,0.233,2848.4,2847.9,0.4654]
[1764557180312,0.35067996,2848.1,2847.9,0.4654]
[1764557180548,0.35067996,2848.3,2847.9,0.4654]
[1764557180722,0.233,2848.4,2848.3,0.4619]
[1764557181127,0.233,2848.4,2847.9,0.4654]
[1764557181445,0.233,2848.4,2847.7,0.144]
[1764557181446,0.233,2848.4,2847.7,3.65559358]
[1764557181743,0.35067996,2848.0,2847.7,3.65559358]
[1764557181944,0.35067996,2848.0,2847.1,0.547004]
[1764557182117,0.233,2848.4,2847.3,1.13109811]
[1764557182118,0.35067996,2847.7,2847.3,1.13109811]
[1764557182318,0.35067996,2847.7,2847.4,0.03511975]
[1764557182514,0.233,2847.8,2847.6,0.4619]
[1764557182723,0.233,2847.8,2847.4,0.4654]
[1764557182724,0.233,2847.8,2847.7,0.4619]
[1764557183148,4.23626397,2848.5,2847.9,0.001]
[1764557183447,0.35067996,2848.1,2847.9,0.001]
[1764557183952,3.74374372,2848.4,2847.9,0.001]
[1764557183953,0.35067996,2848.0,2847.9,0.001]
[1764557184631,0.35067996,2848.2,2847.9,0.48]
[1764557185034,0.76012471,2848.2,2847.9,0.48]
[1764557185235,0.76012471,2848.2,2847.9,0.001]
[1764557185538,0.35067996,2848.0,2847.9,0.001]
[1764557185745,0.35067996,2848.2,2847.9,0.001]
[1764557185941,0.40945692,2848.2,2847.9,0.001]
[1764557186321,0.76013688,2848.2,2847.9,0.001]
[1764557186524,0.233,2848.4,2847.9,0.001]
[1764557186760,0.35067996,2848.2,2848.1,0.144]
[1764557187252,3.51011053,2849.0,2848.1,1.0989]
[1764557187548,0.90609411,2849.8,2848.1,1.0989]
[1764557187549,0.35067996,2848.8,2848.4,7.02148574]
[1764557187765,0.233,2848.7,2848.4,7.02148574]
[1764557187972,0.35067996,2848.8,2848.7,0.479]
[1764557188171,0.58367996,2848.8,2848.7,0.479]
[1764557188550,0.35067996,2849.2,2848.7,0.479]
[1764557188761,0.4656,2849.7,2848.7,0.479]
[1764557188762,0.233,2848.9,2848.7,0.9549]
[1764557188954,0.233,2848.9,2848.8,0.1442]
[1764557189247,0.72559411,2849.7,2848.8,1.0991]
[1764557189448,0.70958387,2849.6,2849.0,3.51000351]
[1764557189664,0.233,2849.6,2849.0,3.51000351]
[1764557189852,0.1805,2849.8,2849.0,3.51000351]
[1764557190048,0.35067996,2849.4,2849.0,7.49590702]
[1764557190254,1.07627407,2849.8,2849.0,7.49590702]
[1764557190450,0.233,2849.7,2849.3,0.479]
[1764557190656,0.58367996,2849.7,2849.3,0.479]
[1764557190952,0.35067996,2849.4,2849.3,0.479]
[1764557191485,0.95859411,2849.7,2849.3,0.479]
[1764557191774,0.95859411,2849.7,2849.1,3.50983913]
[1764557191775,0.35067996,2849.4,2849.1,3.50983913]
[1764557192148,0.35067996,2849.5,2849.3,0.479]
[1764557192367,1.37169411,2850.1,2848.5,0.1442]
[1764557192368,0.4878,2849.2,2848.5,0.1442]
[1764557192685,0.58367996,2849.1,2848.5,0.1442]
[1764557192976,0.233,2849.0,2848.6,0.4759]
[1764557193566,0.233,2849.0,2848.5,0.1442]
[1764557193768,0.35067996,2848.9,2848.5,3.65476788]
[1764557193971,0.6515,2848.9,2848.0,3.51119794]
[1764557194168,0.35067996,2848.3,2847.8,0.1442]
[1764557194372,0.35067996,2848.0,2847.6,0.001]
[1764557194975,0.58367996,2848.0,2847.6,3.51265379]
[1764557195283,0.58367996,2848.0,2847.7,3.511589]
[1764557195584,0.233,2848.0,2847.9,0.48]
[1764557195975,0.233,2848.0,2847.9,3.99135924]
[1764557196152,0.233,2848.0,2847.9,0.48]
[1764557196354,0.35067996,2848.1,2847.9,0.51511359]
[1764557196355,0.233,2848.1,2847.9,0.51511359]
[1764557196686,0.233,2848.1,2847.9,3.51233466]
[1764557196883,0.35067996,2848.0,2847.9,0.001]
[1764557197049,0.233,2848.1,2847.9,3.51235924]
[1764557197586,0.233,2848.1,2848.0,3.99023595]
[1764557197799,1.07627407,2848.8,2848.0,8.01248425]
[1764557197963,0.95859411,2848.7,2848.1,0.144]
[1764557198163,0.95859411,2848.7,2848.0,3.51123595]
[1764557198394,0.35067996,2848.2,2848.0,3.51123595]
[1764557198689,0.233,2848.1,2848.0,3.51123595]
[1764557199576,0.233,2848.1,2848.0,3.99023595]
[1764557200771,0.233,2848.1,2848.0,4.5012483]
[1764557200974,0.233,2848.1,2848.0,3.99023595]
[1764557201684,0.233,2848.3,2848.0,8.72763137]
[1764557201906,0.233,2848.3,2848.1,0.144]
[1764557202099,0.233,2848.3,2848.2,0.479]
[1764557203986,0.233,2848.3,2848.2,0.9549]
[1764557204305,0.235,2848.8,2848.2,7.97687878]
[1764557204589,0.235,2848.8,2848.3,0.81559899]
[1764557204762,0.35067996,2848.7,2848.3,0.81559899]
[1764557204971,0.35067996,2848.7,2848.3,1.29149899]
[1764557205390,0.35067996,2848.7,2848.2,3.51098939]
[1764557205757,0.35067996,2848.7,2848.2,7.49787878]
[1764557205990,0.235,2848.8,2848.3,0.4759]
[1764557206202,0.35067996,2848.7,2848.3,0.4759]
[1764557206569,0.4878,2848.4,2847.9,0.001]
[1764557206769,0.35067996,2848.3,2847.9,0.001]
[1764557206969,0.72759411,2848.8,2847.9,3.98825399]
[1764557207285,0.233,2848.7,2848.0,0.03511235]
[1764557207489,0.35067996,2848.5,2848.0,0.03511235]
[1764557207789,0.35067996,2848.5,2848.2,3.51098939]
[1764557207990,0.233,2848.7,2848.1,0.144]
[1764557207991,0.35067996,2848.3,2848.1,0.144]
[1764557208159,0.35067996,2848.3,2848.1,3.65510646]
[1764557208486,0.35067996,2848.5,2848.2,0.479]
[1764557208783,0.35067996,2848.5,2848.1,7.64211913]
[1764557208784,0.35067996,2848.5,2848.1,0.144]
[1764557208985,0.35067996,2848.5,2848.1,3.65511134]
[1764557209354,0.35067996,2848.5,2848.1,3.69022246]
[1764557209558,0.35067996,2848.3,2848.1,3.69022246]
[1764557209766,0.233,2848.2,2848.1,0.17911112]
[1764557209958,0.233,2848.2,2848.1,0.144]
[1764557210155,0.233,2848.2,2848.1,4.16922379]
[1764557210358,0.233,2848.2,2848.0,3.51118318]
[1764557210793,0.233,2848.2,2848.1,0.03511112]
[1764557211389,0.233,2848.2,2848.1,1.13401112]
[1764557211591,0.002,2848.8,2848.1,1.94975415]
[1764557211794,0.002,2848.8,2848.7,0.479]
[1764557211992,0.235,2848.8,2848.7,3.98937315]
[1764557212168,0.235,2848.8,2848.7,4.46527315]
[1764557212969,0.235,2848.8,2848.7,3.98937315]
[1764557213365,0.235,2848.8,2848.5,3.51058392]
[1764557213366,0.235,2848.8,2848.4,0.4843]
[1764557213891,0.35067996,2848.5,2848.0,3.51123595]
[1764557214092,0.35067996,2848.5,2848.1,0.144]
[1764557214259,4.20165587,2848.8,2848.1,0.144]
[1764557214465,0.35067996,2848.5,2848.1,0.144]
[1764557214767,0.35067996,2848.3,2848.1,0.144]
[1764557214984,0.233,2848.2,2848.1,0.144]
[1764557215587,0.233,2848.2,2847.9,7.02371848]
[1764557215792,0.233,2848.2,2848.0,0.03511235]
[1764557215979,0.233,2848.2,2848.1,3.51111267]
[1764557217294,0.233,2848.2,2848.0,3.51121539]
[1764557217497,0.233,2848.2,2847.9,3.51227349]
[1764557218108,0.35067996,2848.0,2847.9,0.001]
[1764557218677,0.4841,2848.0,2847.9,0.001]
[1764557219678,1.04007996,2848.2,2847.9,0.001]
[1764557219985,0.35067996,2848.0,2847.9,0.001]
[1764557220189,0.233,2848.2,2848.1,0.4812]
[1764557220387,0.4841,2848.0,2847.9,0.001]
[1764557220885,0.233,2848.2,2847.9,0.001]